bitfinex/quotes_BTCUSD_20251224
["timestamp","ask_amount","ask_price","bid_price","bid_amount"]
[1766594265065,0.06864375,87408.0,87401.0,0.01207507]
[1766594265263,0.0137197,87412.0,87401.0,0.01207507]
[1766594265621,0.01144033,87410.0,87401.0,0.01207507]
[1766594265807,0.06864125,87411.0,87401.0,0.01207507]
[1766594266013,0.06864125,87411.0,87396.0,0.0002528]
[1766594266014,0.01144086,87406.0,87396.0,0.0002528]
[1766594266217,0.05720745,87402.0,87396.0,0.0002528]
[1766594266418,0.01144138,87402.0,87396.0,0.0002528]
[1766594266681,0.01144138,87402.0,87396.0,1e-08]
[1766594266682,0.0137197,87397.0,87396.0,1e-08]
[1766594266974,1.36634,87397.0,87396.0,1e-08]
[1766594267454,1.4235502,87397.0,87396.0,1e-08]
[1766594267856,1.36634,87397.0,87396.0,1e-08]
[1766594268302,1.4235502,87397.0,87396.0,1e-08]
[1766594268990,0.0137197,87398.0,87396.0,1e-08]
[1766594269194,0.0137197,87398.0,87397.0,0.000549]
[1766594269393,0.0137197,87398.0,87396.0,1e-08]
[1766594269949,0.03073219,87431.0,87396.0,1e-08]
[1766594269950,0.01172,87397.0,87396.0,1e-08]
[1766594270155,1.36634,87404.0,87396.0,1e-08]
[1766594270433,1.36634,87404.0,87396.0,0.01144218]
[1766594270612,0.01172,87403.0,87396.0,1e-08]
[1766594270814,0.011171,87403.0,87396.0,0.01144218]
[1766594271011,0.01172,87402.0,87396.0,0.01144218]
[1766594271215,0.01172,87402.0,87397.0,0.01060849]
[1766594271416,0.01172,87402.0,87398.0,0.01060849]
[1766594271776,0.01172,87402.0,87396.0,0.06865302]
[1766594271777,0.0114402,87411.0,87402.0,0.01144138]
[1766594271778,0.01172,87411.0,87402.0,0.01144138]
[1766594271956,0.01172,87411.0,87403.0,0.01060849]
[1766594272180,0.01172,87411.0,87404.0,0.01060849]
[1766594272317,0.01172,87411.0,87405.0,0.01060849]
[1766594272532,0.01172,87411.0,87406.0,0.01060849]
[1766594272730,0.01172,87411.0,87407.0,0.01060849]
[1766594272947,0.01172,87411.0,87408.0,0.01060849]
[1766594273153,0.01172,87411.0,87402.0,0.00010644]
[1766594273154,0.01172,87411.0,87409.0,0.01060849]
[1766594273353,0.01172,87411.0,87410.0,0.01060849]
[1766594273627,0.01172,87411.0,87410.0,0.01005949]
[1766594274056,0.20288509,87510.0,87410.0,0.01005949]
[1766594274057,0.20288509,87510.0,87411.0,0.000549]
[1766594274058,0.01172,87432.0,87411.0,0.000549]
[1766594274269,0.01172,87432.0,87414.0,0.01143981]
[1766594274270,0.0138297,87426.0,87414.0,0.01143981]
[1766594274480,0.01172,87425.0,87417.0,0.01143942]
[1766594274670,0.01172,87425.0,87415.0,0.01143968]
[1766594274795,0.01172,87425.0,87417.0,0.01143942]
[1766594274999,0.01172,87425.0,87416.0,0.06863729]
[1766594275196,0.01172,87425.0,87419.0,0.01143916]
[1766594275405,0.00055,87419.0,87413.0,0.01143994]
[1766594275632,0.00055,87419.0,87412.0,0.06863992]
[1766594275890,0.00055,87419.0,87412.0,0.01144007]
[1766594276096,0.01172,87425.0,87412.0,0.01144007]
[1766594276536,0.01172,87425.0,87410.0,0.01144033]
[1766594276735,0.01172,87425.0,87411.0,0.06864123]
[1766594276941,0.02315837,87425.0,87411.0,0.0114402]
[1766594277143,0.01172,87425.0,87411.0,0.0114402]
[1766594277345,0.01172,87425.0,87412.0,0.01144007]
[1766594277550,0.01172,87425.0,87415.0,0.06863775]
[1766594277892,0.01172,87425.0,87408.0,0.22881035]
[1766594277893,0.0114406,87408.0,87369.0,0.42888451]
[1766594278106,1.36634,87405.0,87394.0,0.01144243]
[1766594278311,0.00010648,87408.0,87405.0,0.000549]
[1766594278533,0.01143863,87423.0,87410.0,0.06864145]
[1766594278534,0.04576,87423.0,87410.0,0.06864145]
[1766594278740,0.05719662,87418.0,87402.0,0.01144138]
[1766594278944,0.01172,87422.0,87402.0,0.00035507]
[1766594278945,0.01143968,87415.0,87402.0,0.00035507]
[1766594279145,0.02315981,87414.0,87402.0,0.00035507]
[1766594279584,0.01172,87414.0,87402.0,0.00035507]
[1766594279989,0.01172,87414.0,87402.0,0.01179645]
[1766594280400,0.01172,87414.0,87402.0,0.00035507]
[1766594280973,0.02315981,87414.0,87402.0,0.00035507]
[1766594281180,0.01144007,87412.0,87402.0,0.00035507]
[1766594281474,0.01143902,87420.0,87403.0,0.01144125]
[1766594281678,0.01143863,87423.0,87412.0,0.000549]
[1766594281897,0.01143863,87423.0,87403.0,0.01144125]
[1766594281899,1.61056349,87447.0,87430.0,0.01143772]
[1766594282058,0.05719628,87441.0,87422.0,0.01143876]
[1766594282255,0.05748,87440.0,87422.0,0.01143876]
[1766594282597,0.1260988,87440.0,87424.0,0.0114385]
[1766594282795,0.01143693,87436.0,87422.0,0.01143876]
[1766594282949,0.05718337,87438.0,87421.0,0.01143889]
[1766594283175,0.00010652,87436.0,87422.0,0.01143876]
[1766594283370,0.01154345,87436.0,87422.0,0.01143876]
[1766594283633,0.00010652,87436.0,87423.0,0.01143863]
[1766594283850,0.00010652,87436.0,87418.0,0.22878474]
[1766594283851,0.01143706,87435.0,87415.0,0.01143968]
[1766594284025,0.01143759,87431.0,87416.0,0.58765955]
[1766594284258,0.02315719,87434.0,87416.0,0.00011]
[1766594284259,1.43906,87432.0,87416.0,0.00011]
[1766594284408,1.43906,87432.0,87408.0,0.0114406]
[1766594284409,0.0114385,87424.0,87409.0,0.01144046]
[1766594284614,0.01143837,87425.0,87410.0,0.01144033]
[1766594284615,0.01172,87423.0,87410.0,0.01144033]
[1766594284814,0.01172,87423.0,87418.0,0.4]
[1766594285220,0.00010652,87436.0,87423.0,0.01143863]
[1766594285399,0.01168,87435.0,87423.0,0.01143863]
[1766594285622,0.01168,87435.0,87424.0,0.01058948]
[1766594285623,0.02311706,87435.0,87424.0,0.01058948]
[1766594285824,0.01143732,87433.0,87425.0,0.01058948]
[1766594286042,0.01143732,87433.0,87426.0,0.01004048]
[1766594286043,0.05718798,87431.0,87426.0,0.01004048]
[1766594286243,0.05718798,87431.0,87414.0,0.01143981]
[1766594286244,0.06862508,87432.0,87416.0,0.01143955]
[1766594286422,0.01143798,87428.0,87411.0,0.0114402]
[1766594286624,0.01168,87427.0,87413.0,0.06863961]
[1766594286831,0.01168,87427.0,87413.0,0.01143994]
[1766594287037,0.01168,87427.0,87412.0,0.06864022]
[1766594287038,0.02311811,87427.0,87412.0,0.01144007]
[1766594287292,0.02311811,87427.0,87413.0,0.06863946]
[1766594287496,0.02311811,87427.0,87413.0,0.01143994]
[1766594287722,0.01168,87427.0,87413.0,0.01143994]
[1766594287851,0.01143863,87423.0,87406.0,0.22892662]
[1766594288058,0.01168,87427.0,87413.0,0.01143994]
[1766594288254,0.02311811,87427.0,87407.0,0.57600073]
[1766594288463,0.01168,87427.0,87414.0,0.0686388]
[1766594288875,0.02311811,87427.0,87412.0,0.01144007]
[1766594289069,0.02311811,87427.0,87413.0,0.01143994]
[1766594289332,0.01143824,87426.0,87411.0,0.0114402]
[1766594289503,0.08030868,87427.0,87412.0,0.01144007]
[1766594289504,0.01168,87427.0,87412.0,0.01144007]
[1766594289723,0.01168,87427.0,87414.0,0.01143981]
[1766594289892,0.01168,87427.0,87415.0,0.06863803]
[1766594290098,0.01168,87426.0,87416.0,0.06863729]
[1766594290414,1e-06,87426.0,87421.0,0.01143889]
[1766594290653,0.00010652,87436.0,87428.0,0.01143798]
[1766594290819,0.00010652,87436.0,87429.0,0.01143785]
[1766594291020,0.01168,87435.0,87427.0,0.01143811]
[1766594291268,0.01168,87434.0,87427.0,0.01143811]
[1766594291450,0.01168,87434.0,87428.0,0.01143798]
[1766594291619,0.01168,87434.0,87427.0,0.01143811]
[1766594291826,0.01168,87434.0,87425.0,0.01143837]
[1766594292187,0.01168,87433.0,87423.0,0.05719262]
[1766594292306,0.01168,87433.0,87424.0,0.06863091]
[1766594292711,0.01168,87433.0,87420.0,0.05719473]
[1766594292927,0.01168,87433.0,87421.0,0.06863313]
[1766594293133,0.01168,87433.0,87422.0,0.01143876]
[1766594293330,0.01168,87433.0,87421.0,0.06863313]
[1766594293531,0.01168,87433.0,87422.0,0.01143876]
[1766594293734,0.01168,87433.0,87423.0,0.01143863]
[1766594294287,0.01168,87433.0,87426.0,0.01143824]
[1766594294409,0.01168,87433.0,87427.0,0.01143811]
[1766594294611,0.01168,87433.0,87422.0,0.06863253]
[1766594294812,0.01168,87433.0,87423.0,0.01143863]
[1766594295010,0.01168,87433.0,87425.0,0.4]
[1766594295441,0.000549,87425.0,87417.0,0.00011]
[1766594295658,0.01168,87433.0,87419.0,0.01143916]
[1766594295895,0.01168,87433.0,87423.0,0.01143863]
[1766594296110,0.01168,87432.0,87430.0,0.01143772]
[1766594296311,0.00010652,87436.0,87430.0,0.01143772]
[1766594296536,0.01168,87444.0,87441.0,0.01143628]
[1766594296737,2.66e-06,87449.0,87440.0,0.01143641]
[1766594296948,1.43906,87439.0,87423.0,0.01143863]
[1766594297173,0.01168,87438.0,87429.0,0.01143785]
[1766594297379,0.0253997,87438.0,87423.0,0.01154515]
[1766594297580,0.01143706,87435.0,87423.0,0.00010652]
[1766594297804,1.43906,87436.0,87423.0,0.00010652]
[1766594298027,1.43906,87436.0,87424.0,0.01058246]
[1766594298224,1.43906,87436.0,87425.0,0.02202083]
[1766594298428,1.43906,87436.0,87426.0,0.01058246]
[1766594298642,1.43906,87436.0,87427.0,0.01058246]
[1766594298848,1.43906,87436.0,87428.0,0.01058246]
[1766594299078,1.43906,87436.0,87429.0,0.01058246]
[1766594299231,1.43906,87436.0,87430.0,0.01003346]
[1766594299606,0.01143759,87431.0,87423.0,0.00010652]
[1766594299811,0.01168,87430.0,87423.0,0.00010652]
[1766594299997,0.01168,87430.0,87425.0,0.09]
[1766594300415,0.00423874,87430.0,87425.0,0.09]
[1766594300850,1.45049693,87436.0,87425.0,0.09]
[1766594301070,0.01168,87435.0,87425.0,0.09]
[1766594301717,0.0571862,87434.0,87425.0,0.09]
[1766594301966,0.06862404,87433.0,87425.0,0.07125802]
[1766594302242,0.01143745,87432.0,87425.0,0.07125802]
[1766594302456,0.06862322,87434.0,87425.0,0.07125802]
[1766594302708,0.01168,87435.0,87423.0,0.00010652]
[1766594302906,0.02311706,87435.0,87423.0,0.00010652]
[1766594303113,0.01168,87435.0,87423.0,0.00010652]
[1766594303322,0.01143719,87434.0,87423.0,0.00010652]
[1766594303490,0.01143732,87433.0,87423.0,0.00010652]
[1766594303961,0.06862366,87434.0,87423.0,0.00010652]
[1766594304271,0.01143719,87434.0,87423.0,0.00010652]
[1766594304831,0.01168,87435.0,87423.0,0.00010652]
[1766594305602,0.01168,87435.0,87423.0,0.01154515]
[1766594305837,0.01143602,87443.0,87423.0,0.01154515]
[1766594305838,1.43906,87446.0,87437.0,0.0114368]
[1766594306037,2.66e-06,87449.0,87423.0,0.00010652]
[1766594306038,2.66e-06,87449.0,87443.0,0.01143602]
[1766594306237,2.66e-06,87449.0,87443.0,0.06861555]
[1766594306441,2.66e-06,87449.0,87443.0,0.01143602]
[1766594306676,2.66e-06,87449.0,87439.0,0.22872994]
[1766594306677,0.000549,87443.0,87439.0,0.01143654]
[1766594306881,0.000549,87443.0,87442.0,0.05718075]
[1766594307080,0.01168,87450.0,87442.0,0.05718075]
[1766594307081,2.66e-06,87450.0,87443.0,0.01143602]
[1766594307296,2.66e-06,87450.0,87445.0,0.01143575]
[1766594307503,2.66e-06,87450.0,87447.0,0.01143549]
[1766594307703,0.0138297,87459.0,87447.0,0.01143549]
[1766594307704,0.00011,87459.0,87451.0,0.01143497]
[1766594307931,0.00011,87459.0,87449.0,0.05717574]
[1766594307932,0.03073219,87484.0,87446.0,0.01143562]
[1766594307933,1.43906,87473.0,87459.0,0.01154392]
[1766594308143,0.01143249,87470.0,87459.0,0.00011]
[1766594308394,0.01143236,87471.0,87453.0,0.01168]
[1766594308554,0.01168,87472.0,87453.0,0.01168]
[1766594308555,0.01168,87472.0,87461.0,0.01143366]
[1766594308754,0.11435007,87477.0,87460.0,0.05716886]
[1766594308755,0.01168,87477.0,87472.0,0.000439]
[1766594308959,0.01168,87477.0,87472.0,0.00033248]
[1766594309153,0.01168,87477.0,87463.0,0.0114334]
[1766594309154,0.01168,87477.0,87466.0,0.00011]
[1766594309394,0.01142987,87490.0,87473.0,0.01143209]
[1766594309665,0.01168,87484.0,87472.0,0.01143222]
[1766594309875,0.01168,87491.0,87478.0,0.01143144]
[1766594310214,0.06857932,87490.0,87475.0,0.06859098]
[1766594310413,0.01168,87491.0,87462.0,0.05716709]
[1766594310617,0.01168,87491.0,87430.0,0.1461]
[1766594310618,1.4265517,87476.0,87466.0,0.00021652]
[1766594310899,0.01143236,87471.0,87466.0,0.00021652]
[1766594311080,0.06859101,87475.0,87466.0,0.00021652]
[1766594311286,0.01143209,87473.0,87466.0,0.00021652]
[1766594311518,0.02311157,87477.0,87466.0,0.00021652]
[1766594311520,0.0002,87528.0,87506.0,0.01142778]
[1766594311725,0.0002,87528.0,87472.0,0.0137197]
[1766594311726,0.0002,87532.0,87472.0,0.0137197]
[1766594311727,0.05712746,87524.0,87517.0,0.0137197]
[1766594311910,0.05712746,87524.0,87505.0,0.01142791]
[1766594311911,0.00827101,87527.0,87505.0,0.01142791]
[1766594311912,0.281483,87523.0,87505.0,0.00011]
[1766594312066,1.41512,87520.0,87507.0,0.01142765]
[1766594312273,0.01168,87519.0,87508.0,0.0105503]
[1766594312477,0.01168,87519.0,87512.0,0.011427]
[1766594312676,0.01203516,87519.0,87512.0,0.011427]
[1766594312897,0.01203516,87519.0,87503.0,0.01142817]
[1766594313103,0.01203516,87519.0,87506.0,0.01053143]
[1766594313331,0.01203516,87519.0,87438.0,2.8591447]
[1766594313332,0.01203516,87519.0,87457.0,0.0137197]
[1766594313333,0.01142883,87498.0,87457.0,0.0137197]
[1766594313497,0.0137197,87509.0,87469.0,1.23087]
[1766594313498,1.42654935,87494.0,87469.0,1.23087]
[1766594313704,0.01168,87493.0,87479.0,0.01143131]
[1766594313903,0.01168,87493.0,87480.0,0.0105267]
[1766594314087,0.011131,87493.0,87483.0,0.01143079]
[1766594314286,0.011131,87493.0,87485.0,0.01143053]
[1766594314487,0.000549,87485.0,87483.0,0.0106367]
[1766594314697,0.000549,87485.0,87483.0,0.00011]
[1766594315101,0.011131,87493.0,87483.0,0.00011]
[1766594315297,0.011131,87493.0,87483.0,0.01154079]
[1766594315523,0.011131,87493.0,87483.0,0.00011]
[1766594315726,0.011131,87493.0,87465.0,0.22866073]
[1766594315727,0.00011,87483.0,87474.0,0.01143196]
[1766594315991,0.00011,87483.0,87479.0,0.01143131]
[1766594316175,0.00011,87483.0,87480.0,0.01143118]
[1766594316364,0.01168,87488.0,87481.0,0.01143105]
[1766594316881,0.01168,87488.0,87476.0,0.24006583]
[1766594316882,0.01168,87488.0,87476.0,0.0114317]
[1766594317028,0.01168,87488.0,87471.0,0.22864631]
[1766594317029,0.01168,87488.0,87480.0,0.01143118]
[1766594317253,0.01168,87488.0,87481.0,0.01143105]
[1766594317452,0.01168,87488.0,87480.0,0.01143118]
[1766594317690,0.01168,87488.0,87481.0,0.01143105]
[1766594318079,0.01168,87488.0,87480.0,0.01143118]
[1766594318274,0.000549,87480.0,87478.0,0.05715695]
[1766594318489,0.01168,87488.0,87469.0,0.01143262]
[1766594318490,0.01168,87479.0,87469.0,0.01143262]
[1766594318751,0.02514983,87488.0,87469.0,0.01143262]
[1766594318752,0.01168,87478.0,87470.0,0.05716216]
[1766594318976,0.01168,87478.0,87474.0,0.01143196]
[1766594319318,0.01168,87478.0,87461.0,0.01168]
[1766594319319,0.01168,87490.0,87485.0,0.06858305]
[1766594319500,0.01168,87490.0,87489.0,0.01143]
[1766594319501,4.94e-06,87490.0,87489.0,0.01143]
[1766594320060,1.4853,87489.0,87469.0,0.01143262]
[1766594320262,1.47387,87486.0,87473.0,0.05716013]
[1766594320475,0.04572,87488.0,87475.0,0.01143183]
[1766594320681,0.04572,87488.0,87480.0,0.01143118]
[1766594320904,0.04572,87488.0,87475.0,0.01143183]
[1766594321151,0.04572,87488.0,87478.0,0.01143144]
[1766594321362,0.04572,87488.0,87480.0,0.01143118]
[1766594321705,0.04572,87488.0,87465.0,1.17461]
[1766594321905,0.01143092,87482.0,87468.0,0.01143275]
[1766594322105,0.01168,87481.0,87469.0,0.06859524]
[1766594322308,0.01168,87481.0,87471.0,0.01143236]
[1766594322558,0.01168,87481.0,87472.0,0.01143222]
[1766594322758,0.01168,87481.0,87470.0,0.05716223]
[1766594322759,0.01168,87481.0,87470.0,0.06859472]
[1766594322938,0.01168,87481.0,87470.0,0.01143249]
[1766594323305,0.01168,87481.0,87471.0,0.01143236]
[1766594323878,0.01168,87481.0,87467.0,0.05716428]
[1766594323879,0.01168,87481.0,87461.0,0.05716811]
[1766594323880,0.01143144,87478.0,87461.0,0.05716811]
[1766594324025,0.06859087,87476.0,87462.0,0.01143353]
[1766594324395,0.00011,87476.0,87463.0,0.0114334]
[1766594324523,0.00011,87476.0,87462.0,0.01143353]
[1766594324524,0.0115417,87476.0,87462.0,0.01143353]
[1766594325133,0.01168,87475.0,87463.0,0.0114334]
[1766594325529,0.01168,87475.0,87462.0,0.01143353]
[1766594325732,0.01168,87475.0,87463.0,0.0114334]
[1766594325957,0.01168,87475.0,87462.0,0.06860116]
[1766594326167,0.01168,87475.0,87462.0,0.01143353]
[1766594326373,0.01168,87475.0,87466.0,0.01143301]
[1766594326572,0.01168,87475.0,87467.0,0.01143288]
[1766594327290,0.01168,87475.0,87468.0,0.01143275]
[1766594327436,0.01157,87475.0,87471.0,0.01143236]
[1766594327638,0.01157,87475.0,87472.0,0.0105305]
[1766594327878,0.01157,87475.0,87470.0,0.07912414]
[1766594328187,0.01157,87475.0,87471.0,0.0105305]
[1766594328332,0.01157,87475.0,87472.0,0.0105305]
[1766594328538,0.01157,87475.0,87473.0,0.0105305]
[1766594328736,0.01157,87475.0,87467.0,0.05716398]
[1766594328737,0.01157,87475.0,87471.0,0.0105305]
[1766594329123,0.04572,87480.0,87467.0,0.01143288]
[1766594329124,0.01168,87474.0,87472.0,0.0105305]
[1766594329301,0.01168,87474.0,87473.0,0.0105305]
[1766594329672,0.04572,87483.0,87474.0,0.00055]
[1766594329876,0.01168,87482.0,87474.0,0.0105305]
[1766594330072,0.01168,87482.0,87466.0,0.24009183]
[1766594330073,1.47387,87480.0,87459.0,0.22867611]
[1766594330424,1.47387,87480.0,87466.0,0.06859802]
[1766594330578,1.47387,87480.0,87468.0,0.01143275]
[1766594331406,1.47387,87480.0,87472.0,0.06859333]
[1766594331611,1.47387,87480.0,87468.0,0.01143275]
[1766594331772,1.47387,87480.0,87469.0,0.01143262]
[1766594331971,1.47387,87480.0,87470.0,0.01143249]
[1766594332367,1.47387,87480.0,87471.0,0.01143236]
[1766594332595,1.47387,87480.0,87472.0,0.01143222]
[1766594332805,0.01168,87482.0,87473.0,0.01143209]
[1766594333018,0.01168,87482.0,87471.0,0.01143236]
[1766594333283,0.01168,87482.0,87472.0,0.01143222]
[1766594333482,0.01168,87482.0,87471.0,0.01143236]
[1766594333682,0.01168,87482.0,87473.0,0.01143209]
[1766594333884,0.01168,87482.0,87472.0,0.01143222]
[1766594334087,0.01168,87482.0,87471.0,0.06859389]
[1766594334489,0.01168,87482.0,87471.0,0.01143236]
[1766594334746,0.01168,87482.0,87470.0,0.01143249]
[1766594334978,0.01168,87482.0,87471.0,0.01143236]
[1766594335118,0.01168,87482.0,87474.0,0.01143196]
[1766594335304,0.01168,87482.0,87473.0,0.01143209]
[1766594335506,0.01168,87482.0,87471.0,0.01143236]
[1766594335803,0.02311092,87482.0,87469.0,0.01143262]
[1766594336022,0.02311092,87482.0,87468.0,0.06859643]
[1766594336654,0.01143118,87480.0,87462.0,0.01143353]
[1766594336849,0.0114317,87476.0,87462.0,0.06860108]
[1766594337007,0.00424221,87475.0,87464.0,0.01143327]
[1766594337213,0.00424221,87475.0,87464.0,0.06859957]
[1766594338056,0.00424221,87475.0,87461.0,1.37721366]
[1766594338229,0.01168,87474.0,87464.0,0.01143327]
[1766594338452,0.01168,87474.0,87461.0,1.36578]
[1766594338659,0.01168,87474.0,87456.0,0.01154432]
[1766594338660,0.01143392,87459.0,87456.0,0.00011]
[1766594338850,0.000549,87461.0,87442.0,0.01143615]
[1766594338851,0.0574,87458.0,87442.0,0.01143615]
[1766594339110,0.11457043,87458.0,87443.0,0.06861582]
[1766594339336,0.11457043,87458.0,87444.0,0.01143589]
[1766594339337,0.01143419,87457.0,87444.0,0.01143589]
[1766594339537,0.06883405,87458.0,87443.0,0.06861582]
[1766594339665,0.0574,87458.0,87446.0,0.01143562]
[1766594340015,0.0574,87458.0,87446.0,0.01178562]
[1766594340247,0.0574,87458.0,87447.0,0.05717732]
[1766594340474,0.0574,87458.0,87446.0,0.00035]
[1766594340699,1.48333,87478.0,87458.0,0.00055]
[1766594340826,1.14269786,87513.0,87472.0,0.01143222]
[1766594340827,0.01168,87477.0,87472.0,0.01143222]
[1766594341025,0.0571504,87486.0,87472.0,0.01143222]
[1766594341026,0.01168,87476.0,87472.0,0.06848291]
[1766594341228,0.04572,87486.0,87463.0,0.0114334]
[1766594341229,0.01168,87475.0,87463.0,0.0114334]
[1766594341432,0.04572,87486.0,87463.0,0.99714]
[1766594341632,1.4970497,87505.0,87462.0,0.0137197]
[1766594341633,0.04572,87492.0,87480.0,0.05715591]
[1766594341840,0.04572,87492.0,87483.0,0.01143079]
[1766594342037,0.01168,87491.0,87483.0,0.0685845]
[1766594342258,0.01168,87491.0,87484.0,0.01058238]
[1766594342465,0.01168,87491.0,87480.0,0.05715566]
[1766594342466,1.48333,87487.0,87475.0,0.01143183]
[1766594342669,1.48333,87485.0,87466.0,0.01143301]
[1766594342845,0.01143079,87483.0,87468.0,0.01143275]
[1766594343047,0.01143092,87482.0,87468.0,0.01143275]
[1766594343364,0.01168,87484.0,87474.0,0.01143196]
[1766594343743,1e-06,87483.0,87473.0,0.01143209]
[1766594343977,0.01168,87482.0,87471.0,0.01143236]
[1766594344259,0.01168,87482.0,87467.0,0.01143288]
[1766594344461,0.01168,87482.0,87470.0,0.01143249]
[1766594344607,0.01143052,87487.0,87468.0,0.05716332]
[1766594344608,0.01168,87483.0,87478.0,0.01143144]
[1766594344789,0.000549,87478.0,87470.0,0.01143249]
[1766594344991,0.000549,87478.0,87474.0,0.06859176]
[1766594345195,0.01168,87483.0,87478.0,0.01143144]
[1766594345404,0.01168,87483.0,87473.0,0.01143209]
[1766594345608,0.01168,87483.0,87474.0,0.05715984]
[1766594345808,0.01168,87483.0,87476.0,0.06858962]
[1766594346186,0.01168,87483.0,87474.0,0.06859116]
[1766594346422,0.01168,87483.0,87477.0,0.01143157]
[1766594346626,1e-06,87483.0,87477.0,0.01143157]
[1766594346961,1e-06,87483.0,87480.0,0.05715562]
[1766594347183,1e-06,87483.0,87477.0,0.01143157]
[1766594347184,0.01142922,87495.0,87479.0,0.01168]
[1766594347383,0.02310883,87498.0,87479.0,0.01168]
[1766594347618,0.02310883,87498.0,87479.0,0.02311131]
[1766594347619,0.01142961,87492.0,87479.0,0.02311131]
[1766594347823,1.71191056,87497.0,87469.0,0.05716308]
[1766594347824,0.0137197,87490.0,87469.0,0.05716308]
[1766594348042,0.0137197,87490.0,87463.0,0.0114334]
[1766594348043,0.06858506,87483.0,87468.0,0.0685965]
[1766594348335,0.01168,87489.0,87465.0,0.22877258]
[1766594348336,0.01168,87482.0,87478.0,0.01143144]
[1766594348535,0.01142909,87496.0,87482.0,0.00055]
[1766594348772,0.01142948,87493.0,87473.0,0.01143209]
[1766594348944,0.01142961,87492.0,87477.0,0.01143157]
[1766594349144,0.01142961,87492.0,87475.0,0.01143183]
[1766594349145,0.06857864,87491.0,87476.0,0.06858969]
[1766594349442,0.01142987,87490.0,87476.0,0.06858969]
[1766594349643,0.01143013,87488.0,87473.0,0.01143209]
[1766594349787,0.0114304,87486.0,87472.0,0.01143222]
[1766594349992,0.06858299,87486.0,87471.0,0.01143236]
[1766594350194,0.01168,87487.0,87477.0,0.01143157]
[1766594350506,0.02311026,87487.0,87473.0,0.01143209]
[1766594350707,0.0114304,87486.0,87473.0,0.01143209]
[1766594351791,0.05715367,87484.0,87468.0,0.01143275]
[1766594351982,0.06858481,87483.0,87468.0,0.06859526]
[1766594352188,0.01143053,87485.0,87468.0,0.06859526]
[1766594352189,0.01143053,87485.0,87471.0,0.06859372]
[1766594352364,0.0114304,87486.0,87469.0,0.01143262]
[1766594352365,0.06858293,87486.0,87470.0,0.06859364]
[1766594352579,0.0114304,87486.0,87470.0,0.06859441]
[1766594352783,0.01143105,87481.0,87466.0,0.65715]
[1766594352950,0.01143105,87481.0,87462.0,0.01143353]
[1766594352951,0.000549,87470.0,87464.0,0.01143327]
[1766594353148,0.000549,87470.0,87460.0,0.01143379]
[1766594353149,0.01143262,87469.0,87451.0,0.01154497]
[1766594353347,0.01143222,87472.0,87456.0,0.01143432]
[1766594353348,1.48333,87472.0,87456.0,0.01143432]
[1766594353555,0.01168,87473.0,87459.0,0.06860335]
[1766594353766,0.01168,87473.0,87456.0,0.01154084]
[1766594353767,0.01168,87473.0,87462.0,0.01143353]
[1766594354005,0.01168,87473.0,87461.0,0.01143366]
[1766594354163,0.000549,87461.0,87456.0,0.00010652]
[1766594354361,0.01168,87464.0,87456.0,0.00010652]
[1766594354692,0.01168,87464.0,87457.0,0.01059534]
[1766594354895,0.01168,87464.0,87458.0,0.01059534]
[1766594355095,0.01168,87464.0,87459.0,0.01059534]
[1766594355322,0.01168,87464.0,87460.0,0.01059534]
[1766594355526,0.02311327,87464.0,87461.0,0.01059534]
[1766594355730,0.02311327,87464.0,87456.0,0.00010652]
[1766594355731,0.01143392,87459.0,87456.0,0.00010652]
[1766594355893,0.01168,87458.0,87451.0,0.00011]
[1766594356698,0.02311405,87458.0,87451.0,0.00011]
[1766594356901,0.02311405,87458.0,87439.0,0.01154654]
[1766594356902,1.49501,87458.0,87444.0,0.01143589]
[1766594357263,1.56361441,87458.0,87444.0,0.01143589]
[1766594357396,1.50644405,87458.0,87445.0,0.01143575]
[1766594357598,1.50644405,87458.0,87444.0,0.06861516]
[1766594357827,1.56361476,87458.0,87443.0,0.05717991]
[1766594358026,0.06860626,87456.0,87442.0,0.01143615]
[1766594358228,0.01143458,87454.0,87441.0,0.06861763]
[1766594358426,0.01143458,87454.0,87439.0,0.00011]
[1766594358427,0.04601573,87451.0,87439.0,0.00011]
[1766594358659,0.01143458,87454.0,87439.0,0.00011]
[1766594358660,0.01143575,87445.0,87439.0,0.00011]
[1766594358943,0.01143575,87445.0,87426.0,0.01143824]
[1766594358944,0.01143575,87445.0,87423.0,0.06863136]
[1766594358945,0.05718356,87438.0,87423.0,0.06863136]
[1766594359228,0.01168,87437.0,87429.0,0.00011]
[1766594359858,0.01143693,87436.0,87429.0,0.00011]
[1766594360063,0.05718839,87431.0,87429.0,0.00011]
[1766594360349,0.05718839,87431.0,87417.0,0.00011]
[1766594360350,0.05719082,87427.0,87417.0,0.00011]
[1766594360525,0.06862744,87429.0,87427.0,0.000549]
[1766594360913,0.08030635,87430.0,87417.0,0.01154942]
[1766594361115,0.01168,87430.0,87418.0,0.01143929]
[1766594361454,0.01168,87430.0,87420.0,0.01143902]
[1766594361679,0.00950056,87430.0,87421.0,0.01143889]
[1766594361887,1.48333,87435.0,87422.0,0.01143876]
[1766594362016,0.02311719,87434.0,87422.0,0.01143876]
[1766594362227,0.01168,87434.0,87421.0,0.01143889]
[1766594362425,0.01143732,87433.0,87420.0,0.01143902]
[1766594362654,0.01143732,87433.0,87419.0,0.06863479]
[1766594362858,0.01143772,87430.0,87417.0,0.00011]
[1766594363055,0.05718926,87429.0,87417.0,0.00011]
[1766594363333,0.01168,87428.0,87417.0,0.00011]
[1766594363476,0.01168,87428.0,87417.0,0.05730677]
[1766594363664,0.01168,87428.0,87422.0,0.01143876]
[1766594363858,0.01168,87428.0,87417.0,0.00011]
[1766594363859,0.01113,87428.0,87417.0,0.01154942]
[1766594364061,0.01113,87428.0,87417.0,0.00011]
[1766594364264,0.01143811,87427.0,87417.0,0.00011]
[1766594364463,0.02256798,87428.0,87417.0,0.00011]
[1766594364464,0.01113,87428.0,87417.0,0.00011]
[1766594364673,0.01143824,87426.0,87417.0,0.00011]
[1766594364874,0.07975824,87428.0,87417.0,0.00011]
[1766594365097,0.01143811,87427.0,87417.0,0.00011]
[1766594365276,0.0114385,87424.0,87417.0,0.00011]
[1766594365480,0.06863028,87425.0,87417.0,0.00011]
[1766594365874,0.34307973,87444.0,87417.0,0.00011]
[1766594365875,1.48333,87452.0,87429.0,0.01143785]
[1766594366076,0.01168,87444.0,87432.0,0.01143745]
[1766594366341,2.57e-06,87432.0,87425.0,0.01143837]
[1766594366559,2.57e-06,87432.0,87425.0,0.00010652]
[1766594366893,0.01168,87433.0,87425.0,0.00010652]
[1766594367109,0.0114368,87437.0,87425.0,0.00010652]